fUST/lending_fUST_20250813
["ID","MTS","AMOUNT","RATE_DAILY","PERIOD"]
[378802249,1755023444694,-1734.57084988,0.0002,2]
[378802250,1755023444703,-151.0,0.0002,2]
[378802251,1755023444712,-151.0,0.0002,2]
[378802252,1755023444722,-151.0,0.0002,2]
[378802253,1755023444732,-151.0,0.0002,2]
[378802254,1755023444741,-151.0,0.0002,2]
[378802255,1755023444750,-174.341183,0.0002,2]
[378802256,1755023444759,-365.454494,0.0002,2]
[378802257,1755023444768,-365.454494,0.0002,2]
[378802258,1755023444777,-365.454494,0.0002,2]
[378802259,1755023444786,-365.454494,0.0002,2]
[378802260,1755023444795,-365.454494,0.0002,2]
[378802261,1755023444805,-365.454494,0.0002,2]
[378802262,1755023444814,-365.454494,0.0002,2]
[378802263,1755023444823,-365.454494,0.0002,2]
[378802264,1755023444832,-1536.393569,0.0002,7]
[378802265,1755023444841,-195.203855,0.0002,2]
[378802266,1755023444850,-195.203855,0.0002,2]
[378802267,1755023444860,-195.203855,0.0002,2]
[378802268,1755023444869,-195.203855,0.0002,2]
[378802269,1755023444879,-151.0,0.0002,2]
[378802270,1755023444889,-151.0,0.0002,2]
[378802271,1755023444899,-151.0,0.0002,2]
[378802272,1755023444909,-151.0,0.0002,2]
[378802273,1755023444918,-151.0,0.0002,2]
[378802274,1755023444927,-151.0,0.0002,2]
[378802275,1755023444936,-223.356409,0.0002,2]
[378802276,1755023444945,-151.0,0.0002,2]
[378802277,1755023444954,-151.0,0.0002,2]
[378802278,1755023444963,-151.0,0.0002,2]
[378802279,1755023444973,-151.0,0.0002,2]
[378802280,1755023444982,-1000.0,0.0002,5]
[378802281,1755023444991,-151.0,0.0002,2]
[378802282,1755023445001,-151.0,0.0002,2]
[378802283,1755023445010,-151.0,0.0002,2]
[378802284,1755023445019,-151.0,0.0002,2]
[378802285,1755023445028,-151.0,0.0002,2]
[378802286,1755023445037,-151.0,0.0002,2]
[378802287,1755023445046,-242.833482,0.0002,2]
[378802288,1755023445055,-151.0,0.0002,2]
[378802289,1755023445065,-151.0,0.0002,2]
[378802290,1755023445075,-1000.0,0.0002,2]
[378802291,1755023445083,-250.0,0.0002,10]
[378802292,1755023445092,-150.0,0.0002,2]
[378802293,1755023445102,-1267.323235,0.0002,2]
[378802294,1755023445111,-1267.323235,0.0002,2]
[378802295,1755023445121,-1267.323235,0.0002,2]
[378802296,1755023445131,-1267.323235,0.0002,2]
[378802297,1755023445141,-1267.323235,0.0002,2]
[378802298,1755023445150,-1267.323235,0.0002,2]
[378802299,1755023445159,-1267.323235,0.0002,2]
[378802300,1755023445168,-1267.323235,0.0002,2]
[378802301,1755023445177,-1267.323235,0.0002,2]
[378802302,1755023445186,-1267.323238,0.0002,2]
[378802303,1755023445195,-394.431115,0.0002,2]
[378802304,1755023445204,-394.431115,0.0002,2]
[378802305,1755023445213,-394.431115,0.0002,2]
[378802306,1755023445222,-394.431115,0.0002,2]
[378802307,1755023445232,-394.431115,0.0002,2]
[378802308,1755023445241,-394.431115,0.0002,2]
[378802309,1755023445251,-394.431115,0.0002,2]
[378802310,1755023445262,-394.431115,0.0002,2]
[378802311,1755023445271,-394.431115,0.0002,2]
[378802312,1755023445281,-394.431123,0.0002,2]
[378802313,1755023445290,-300.0,0.0002,2]
[378802314,1755023445299,-2258.4345,0.0002,2]
[378802315,1755023445309,-151.0,0.0002,2]
[378802316,1755023445319,-151.0,0.0002,2]
[378802317,1755023445328,-151.0,0.0002,2]
[378802318,1755023445338,-151.0,0.0002,2]
[378802319,1755023445347,-151.0,0.0002,2]
[378802320,1755023445357,-151.0,0.0002,2]
[378802321,1755023445366,-151.0,0.0002,2]
[378802322,1755023445377,-245.593671,0.0002,2]
[378802323,1755023445386,-160.0,0.0002,3]
[378802324,1755023445396,-160.0,0.0002,3]
[378802325,1755023445406,-4000.0,0.0002,4]
[378802326,1755023445419,-276.4,0.00020022,2]
[378802327,1755023445428,-895.0,0.00020051,2]
[378802328,1755023445438,-1566.0,0.00020051,2]
[378802329,1755023445447,-6000.0,0.00020062,2]
[378802330,1755023445457,-365.454494,0.00020062,2]
[378802331,1755023445466,-365.454485,0.00020062,2]
[378802332,1755023445476,-195.203849,0.00020062,2]
[378802333,1755023445487,-151.0,0.00020062,2]
[378802334,1755023445496,-151.0,0.00020062,2]
[378802335,1755023445505,-1500.0,0.00020068,2]
[378802336,1755023445516,-1500.0,0.00020068,2]
[378802337,1755023445526,-1500.0,0.00020068,2]
[378802338,1755023445535,-1500.0,0.00020068,2]
[378802339,1755023445545,-1500.0,0.00020068,2]
[378802340,1755023445554,-291.14186915,0.00020068,2]
[378802341,1755023445563,-1500.0,0.00020068,2]
[378802342,1755023445573,-1500.0,0.00020068,2]
[378802343,1755023445583,-1500.0,0.00020068,2]
[378802344,1755023445592,-200.0,0.00020071,15]
[378802345,1755023445602,-200.0,0.00020071,15]
[378802346,1755023445611,-200.0,0.00020071,15]
[378802347,1755023445620,-200.0,0.00020071,15]
[378802348,1755023445631,-320.0,0.00020071,15]
[378802349,1755023445640,-250.0,0.000201,10]
[378802350,1755023445649,-168.0,0.00020134,2]
[378802351,1755023445658,-200.0,0.0002014,2]
[378802352,1755023445667,-5000.0,0.00020148,2]
[378802353,1755023445676,-151.0,0.00020148,2]
[378802354,1755023445686,-205.182605,0.00020187,2]
[378802355,1755023445695,-250.0,0.000202,10]
[378802356,1755023445705,-168.0,0.00020218,2]
[378802357,1755023445714,-330.12951488,0.00020257,2]
[378802358,1755023445723,-151.0,0.00020287,2]
[378802359,1755023445732,-18502.69577858,0.00020287,2]
[378802360,1755023445741,-1684.88,0.00020289,3]
[378802361,1755023445750,-842.44,0.00020289,3]
[378802362,1755023445759,-421.22,0.00020289,3]
[378802363,1755023445768,-334.34,0.00020289,3]
[378802364,1755023445778,-250.0,0.000203,10]
[378802365,1755023445788,-276.4,0.00020305,2]
[378802366,1755023445798,-895.0,0.00020325,2]
[378802367,1755023445807,-1566.0,0.00020325,2]
[378802368,1755023445816,-168.0,0.00020376,2]
[378802369,1755023445826,-12457.80177839,0.00020378,2]
[378802370,1755023445835,-250.0,0.000204,10]
[378802371,1755023445844,-151.0,0.00020435,2]
[378802372,1755023445856,-1500.0,0.00020468,2]
[378802373,1755023445865,-168.0,0.00020472,2]
[378802374,1755023445875,-250.0,0.000205,10]
[378802375,1755023445886,-1000.0,0.00020521,2]
[378802376,1755023445896,-500.49707371,0.00020521,2]
[378802378,1755023445906,-1000.0,0.00020521,2]
[378802379,1755023445915,-1000.0,0.00020521,2]
[378802380,1755023445925,-1000.0,0.00020521,2]
[378802381,1755023445934,-1000.0,0.00020521,2]
[378802382,1755023445943,-1000.0,0.00020521,2]
[378802383,1755023445952,-500.83920195,0.00020521,2]
[378802384,1755023445961,-662.05088607,0.00020521,2]
[378802385,1755023445971,-1000.0,0.00020521,2]
[378802386,1755023445980,-1000.0,0.00020521,2]
[378802387,1755023445989,-1000.0,0.00020521,2]
[378802388,1755023445998,-1000.0,0.00020521,2]
[378802389,1755023446007,-1000.0,0.00020521,2]
[378802391,1755023446016,-500.87172928,0.00020521,2]
[378802392,1755023446025,-1000.0,0.00020521,2]
[378802393,1755023446034,-894.69511004,0.00020521,2]
[378802394,1755023446043,-1000.0,0.00020521,2]
[378802395,1755023446052,-1000.0,0.00020521,2]
[378802396,1755023446061,-500.0,0.00020521,2]
[378802397,1755023446070,-501.03889803,0.00020521,2]
[378802398,1755023446079,-1000.0,0.00020521,2]
[378802400,1755023446088,-500.0,0.00020521,2]
[378802402,1755023446097,-246.06351529,0.00020521,2]
[378802403,1755023446106,-500.0,0.00020521,2]
[378802404,1755023446115,-1000.0,0.00020521,2]
[378802405,1755023446124,-496.97343253,0.00020521,2]
[378802406,1755023446230,-503.02656747,0.00020521,2]
[378802408,1755023446240,-500.0,0.00020521,2]
[378802409,1755023446249,-1000.0,0.00020521,2]
[378802410,1755023446258,-250.0,0.00020521,2]
[378802411,1755023446267,-1000.0,0.00020521,2]
[378802412,1755023446277,-1000.0,0.00020521,2]
[378802413,1755023446287,-500.0,0.00020521,2]
[378802414,1755023446296,-1000.0,0.00020521,2]
[378802415,1755023446305,-508.43518532,0.00020521,2]
[378802416,1755023446315,-151.0,0.00020521,2]
[378802417,1755023446324,-160.0,0.0002054,2]
[378802418,1755023446335,-3929.09,0.00020547,2]
[378802419,1755023446344,-162.65333618,0.00020548,2]
[378802420,1755023446354,-276.4,0.00020587,2]
[378802421,1755023446363,-895.0,0.00020599,2]
[378802422,1755023446374,-1566.0,0.00020599,2]
[378802423,1755023446385,-250.0,0.000206,10]
[378802424,1755023446395,-1500.0,0.00020616,2]
[378802425,1755023446405,-2000.0,0.00020616,2]
[378802426,1755023446418,-2000.0,0.00020616,2]
[378802427,1755023446428,-2000.0,0.00020616,2]
[378802428,1755023446437,-2000.0,0.00020616,2]
[378802429,1755023446447,-2000.0,0.00020616,2]
[378802430,1755023446457,-1000.0,0.00020616,2]
[378802431,1755023446467,-2000.0,0.00020616,2]
[378802432,1755023446477,-162.65333618,0.00020658,2]
[378802433,1755023446487,-250.0,0.000207,10]
[378802434,1755023446498,-162.65333618,0.00020795,2]
[378802435,1755023446508,-139.01212939,0.000208,10]
[378802436,1755023446518,-250.0,0.000208,10]
[378802437,1755023446527,-168.0,0.00020855,2]
[378802438,1755023446536,-276.4,0.0002087,2]
[378802439,1755023446545,-895.0,0.00020873,2]
[378802440,1755023446556,-1566.0,0.00020873,2]
[378802441,1755023446566,-168.0,0.00020885,2]
[378802442,1755023446576,-250.0,0.000209,10]
[378802443,1755023446586,-162.65333618,0.00020904,2]
[378802444,1755023446595,-1200.0,0.00020908,2]
[378802445,1755023446604,-1942.28339133,0.00021,5]
[378802446,1755023446614,-271.23473687,0.00021,2]
[378802447,1755023446623,-18523.0,0.00021,2]
[378802448,1755023446634,-12673.43806534,0.00021,10]
[378802449,1755023446643,-840.71401353,0.00021,10]
[378802450,1755023446653,-215.52532928,0.00021,10]
[378802451,1755023446663,-250.0,0.00021,10]
[378802452,1755023446672,-150.0,0.00021,2]
[378802453,1755023446682,-528.03329096,0.00021,10]
[378802454,1755023446692,-417.15472785,0.00021,10]
[378802455,1755023446701,-162.65333618,0.00021014,2]
[378802456,1755023446710,-1949.63201855,0.00021016,2]
[378802457,1755023446719,-1500.0,0.00021068,2]
[378802458,1755023446728,-1012.21790643,0.00021068,2]
[378802459,1755023446738,-1500.0,0.00021068,2]
[378802460,1755023446748,-1500.0,0.00021068,2]
[378802461,1755023446757,-1500.0,0.00021068,2]
[378802462,1755023446767,-822.98987096,0.00021068,2]
[378802463,1755023446776,-1500.0,0.00021068,2]
[378802464,1755023446785,-842.7074278,0.00021068,2]
[378802465,1755023446795,-1500.0,0.00021068,2]
[378802466,1755023446804,-1153.11062252,0.00021068,2]
[378802467,1755023446813,-1500.0,0.00021068,2]
[378802468,1755023446823,-500.0,0.00021068,2]
[378802469,1755023446832,-1500.0,0.00021068,2]
[378802470,1755023446841,-1500.0,0.00021068,2]
[378802471,1755023446852,-1500.0,0.00021068,2]
[378802472,1755023446861,-1500.0,0.00021068,2]
[378802473,1755023446871,-1500.0,0.00021068,2]
[378802474,1755023446886,-350.0,0.00021068,2]
[378802475,1755023446896,-1500.0,0.00021068,2]
[378802476,1755023446906,-1500.0,0.00021068,2]
[378802477,1755023446915,-1500.0,0.00021068,2]
[378802478,1755023446925,-288.76490744,0.00021068,2]
[378802479,1755023446934,-260.0,0.00021088,2]
[378802480,1755023446944,-250.0,0.000211,10]
[378802481,1755023446953,-895.0,0.00021147,2]
[378802482,1755023446963,-1566.0,0.00021147,2]
[378802483,1755023446973,-162.65333618,0.00021151,2]
[378802484,1755023446983,-276.4,0.00021152,2]
[378802485,1755023446992,-2500.0,0.00021164,2]
[378802486,1755023447001,-2500.0,0.00021164,2]
[378802487,1755023447010,-2500.0,0.00021164,2]
[378802488,1755023447020,-2500.0,0.00021164,2]
[378802489,1755023447029,-2500.0,0.00021164,2]
[378802490,1755023447038,-2500.0,0.00021164,2]
[378802491,1755023447048,-2258.4345,0.000212,2]
[378802492,1755023447057,-168.0,0.00021244,2]
[378802493,1755023447067,-162.65333618,0.0002126,2]
[378802494,1755023447077,-168.0,0.00021275,2]
[378802495,1755023447087,-2562.72027593,0.000213,2]
[378802496,1755023447097,-101665.17337825,0.000213,7]
[378802497,1755023447107,-215.52532928,0.000213,7]
[378802498,1755023447117,-528.03329096,0.000213,7]
[378802501,1755023447267,-417.15472785,0.000213,7]
[378802502,1755023447277,-160.0,0.000213,7]
[378802503,1755023447286,-587.0,0.00021333,2]
[378802504,1755023447296,-162.65333618,0.00021397,2]
[378802505,1755023447306,-895.0,0.00021421,2]
[378802507,1755023447315,-1566.0,0.00021421,2]
[378802509,1755023447325,-276.4,0.00021435,2]
[378802510,1755023447335,-150.61277924,0.00021473,2]
[378802511,1755023447344,-300.0,0.00021473,2]
[378802512,1755023447354,-2074.84807765,0.000215,2]
[378802513,1755023447364,-7633.62,0.000215,2]
[378802515,1755023447374,-40737.63,0.000215,2]
[378802516,1755023447385,-72408.18,0.000215,2]
[378802517,1755023447396,-59838.89,0.000215,2]
[378802518,1755023447405,-4719.47,0.000215,2]
[378802519,1755023447418,-15516.91,0.000215,2]
[378802520,1755023447427,-162.65333618,0.00021507,2]
[378802522,1755023447436,-200.0,0.0002151,2]
[378802523,1755023447447,-10389.62915776,0.00021516,2]
[378802524,1755023447456,-734.78952573,0.00021616,2]
[378802525,1755023447467,-2000.0,0.00021616,2]
[378802526,1755023447476,-2000.0,0.00021616,2]
[378802527,1755023447486,-750.70139098,0.00021616,2]
[378802528,1755023447497,-186.18187767,0.00021616,2]
[378802529,1755023447507,-1252.07354889,0.00021616,2]
[378802530,1755023447520,-1176.41425642,0.00021616,2]
[378802531,1755023447530,-2000.0,0.00021616,2]
[378802532,1755023447539,-2000.0,0.00021616,2]
[378802533,1755023447550,-2000.0,0.00021616,2]
[378802534,1755023447559,-338.25542801,0.00021616,2]
[378802535,1755023447569,-234.48418212,0.00021616,2]
[378802536,1755023447578,-450.0,0.00021616,2]
[378802537,1755023447587,-2000.0,0.00021616,2]
[378802539,1755023447597,-2000.0,0.00021616,2]
[378802541,1755023447606,-2000.0,0.00021616,2]
[378802543,1755023447616,-360.0,0.00021636,2]
[378802544,1755023447625,-162.65333618,0.00021644,2]
[378802545,1755023447637,-54939.45980454,0.00021655,2]
[378802546,1755023447646,-19187.29552238,0.00021656,2]
[378802547,1755023447655,-895.0,0.00021695,2]
[378802548,1755023447666,-1566.0,0.00021695,2]
[378802549,1755023447675,-2500.0,0.00021712,2]
[378802550,1755023447684,-3000.0,0.00021712,2]
[378802551,1755023447693,-3000.0,0.00021712,2]
[378802552,1755023447703,-3000.0,0.00021712,2]
[378802553,1755023447712,-2772.97264715,0.00021712,2]
[378802554,1755023447721,-400.24891133,0.00021712,2]
[378802555,1755023447730,-276.4,0.00021717,2]
[378802556,1755023447739,-330.12951488,0.00021722,2]
[378802557,1755023447749,-4275.83453573,0.00021792,7]
[378802558,1755023447758,-2000.0,0.000218,2]
[378802559,1755023447767,-5000.0,0.00021842,2]
[378802560,1755023447776,-12457.80177839,0.000219,2]
[378802561,1755023447785,-500.0,0.00021917,2]
[378802562,1755023447794,-461.730174,0.00021918,2]
[378802563,1755023447804,-461.730174,0.00021918,2]
[378802564,1755023447813,-461.730174,0.00021918,2]
[378802565,1755023447822,-461.730174,0.00021918,2]
[378802566,1755023447832,-461.730174,0.00021918,2]
[378802567,1755023447842,-461.730174,0.00021918,2]
[378802568,1755023447851,-461.730174,0.00021918,2]
[378802569,1755023447860,-461.730174,0.00021918,2]
[378802570,1755023447869,-461.730174,0.00021918,2]
[378802571,1755023447879,-461.730174,0.00021918,2]
[378802572,1755023447889,-461.730174,0.00021918,2]
[378802573,1755023447898,-461.730174,0.00021918,2]
[378802574,1755023447907,-461.730174,0.00021918,2]
[378802575,1755023447917,-461.730174,0.00021918,2]
[378802576,1755023447927,-461.730174,0.00021918,2]
[378802577,1755023447936,-461.730174,0.00021918,2]
[378802578,1755023447945,-461.730174,0.00021918,2]
[378802579,1755023447955,-461.730174,0.00021918,2]
[378802580,1755023447964,-461.730174,0.00021918,2]
[378802581,1755023447973,-461.730166,0.00021918,2]
[378802582,1755023447982,-150.0,0.00021918,2]
[378802583,1755023447991,-150.0,0.00021918,2]
[378802584,1755023448000,-173.0,0.00021918,2]
[378802585,1755023448010,-173.0,0.00021918,2]
[378802586,1755023448020,-173.0,0.00021918,2]
[378802587,1755023448029,-152.0,0.00021918,2]
[378802588,1755023448038,-152.0,0.00021918,2]
[378802589,1755023448048,-152.0,0.00021918,2]
[378802590,1755023448057,-152.0,0.00021918,2]
[378802591,1755023448066,-152.0,0.00021918,2]
[378802592,1755023448076,-152.0,0.00021918,2]
[378802593,1755023448085,-152.0,0.00021918,2]
[378802594,1755023448094,-152.0,0.00021918,2]
[378802595,1755023448103,-152.0,0.00021918,2]
[378802596,1755023448113,-152.0,0.00021918,2]
[378802597,1755023448122,-152.0,0.00021918,2]
[378802598,1755023448132,-152.0,0.00021918,2]
[378802599,1755023448141,-152.0,0.00021918,2]
[378802600,1755023448150,-152.0,0.00021918,2]
[378802601,1755023448160,-209.70329005,0.00021918,2]
[378802602,1755023448170,-152.0,0.00021918,2]
[378802603,1755023448179,-152.0,0.00021918,2]
[378802604,1755023448189,-152.0,0.00021918,2]
[378802605,1755023448198,-152.0,0.00021918,2]
[378802606,1755023448208,-152.0,0.00021918,2]
[378802607,1755023448218,-152.0,0.00021918,2]
[378802608,1755023448228,-152.0,0.00021918,2]
[378802609,1755023448237,-152.0,0.00021918,2]
[378802610,1755023448247,-152.0,0.00021918,2]
[378802611,1755023448257,-152.0,0.00021918,2]
[378802612,1755023448266,-152.0,0.00021918,2]
[378802613,1755023448276,-152.0,0.00021918,2]
[378802614,1755023448286,-152.0,0.00021918,2]
[378802615,1755023448296,-152.0,0.00021918,2]
[378802616,1755023448305,-152.0,0.00021918,2]
[378802617,1755023448314,-152.0,0.00021918,2]
[378802618,1755023448324,-152.0,0.00021918,2]
[378802619,1755023448334,-152.0,0.00021918,2]
[378802620,1755023448343,-152.0,0.00021918,2]
[378802621,1755023448354,-152.0,0.00021918,2]
[378802622,1755023448363,-152.0,0.00021918,2]
[378802623,1755023448373,-152.0,0.00021918,2]
[378802624,1755023448384,-152.0,0.00021918,2]
[378802625,1755023448394,-152.0,0.00021918,2]
[378802626,1755023448403,-152.0,0.00021918,2]
[378802627,1755023448415,-152.0,0.00021918,2]
[378802628,1755023448426,-152.0,0.00021918,2]
[378802629,1755023448435,-152.0,0.00021918,2]
[378802630,1755023448445,-152.0,0.00021918,2]
[378802631,1755023448454,-152.0,0.00021918,2]
[378802632,1755023448463,-152.0,0.00021918,2]
[378802633,1755023448473,-152.0,0.00021918,2]
[378802634,1755023448482,-157.06970312,0.00021918,2]
[378802635,1755023448492,-200.0,0.00021918,2]
[378802636,1755023448503,-174.82812694,0.00021918,2]
[378802637,1755023448512,-173.0,0.00021918,2]
[378802638,1755023448522,-152.0,0.00021918,2]
[378802639,1755023448531,-152.0,0.00021918,2]
[378802640,1755023448541,-152.0,0.00021918,2]
[378802641,1755023448550,-152.0,0.00021918,2]
[378802642,1755023448559,-152.0,0.00021918,2]
[378802643,1755023448568,-152.0,0.00021918,2]
[378802644,1755023448578,-152.0,0.00021918,2]
[378802645,1755023448587,-152.0,0.00021918,2]
[378802646,1755023448596,-152.0,0.00021918,2]
[378802647,1755023448607,-152.0,0.00021918,2]
[378802648,1755023448616,-895.0,0.00021969,2]
[378802649,1755023448626,-1566.0,0.00021969,2]
[378802650,1755023448636,-150.0,0.00021973,2]
[378802651,1755023448646,-500.0,0.00021973,2]
[378802652,1755023448655,-3769.19851486,0.0002199,2]
[378802653,1755023448664,-157620.99613881,0.00021999,7]
[378802654,1755023448751,-1587.03067509,0.00021999,7]
[378802655,1755023448763,-33985.93392202,0.00021999,7]
[378802656,1755023448814,460.0,0.00029152,60]
[378802657,1755023448864,460.0,0.00029152,60]
[378802658,1755023448914,460.0,0.00029152,60]
[378802659,1755023448971,460.0,0.00029152,60]
[378802660,1755023449035,2496.71,0.00029152,60]
[378802661,1755023449084,2496.71,0.00029152,60]
[378802662,1755023449139,2496.71,0.00029152,60]
[378802663,1755023449187,541.32983738,0.00029152,60]
[378802664,1755023449200,-500.0,0.00018854,2]
[378802665,1755023449211,-843.25559725,0.00019459,2]
[378802666,1755023449220,-184.0,0.00019827,2]
[378802667,1755023449229,-184.0,0.00021421,2]
[378802668,1755023449240,-9982.46119685,0.00021999,7]
[378802669,1755023449291,2496.71,0.00029152,60]
[378802670,1755023449342,2496.71,0.00029152,60]
[378802671,1755023449405,2496.71,0.00029152,60]
[378802672,1755023449469,2496.71,0.00029152,60]
[378802673,1755023449540,2496.71,0.00029152,60]
[378802674,1755023449603,2496.71,0.00029152,60]
[378802675,1755023449656,2496.71,0.00029152,60]
[378802676,1755023449710,2496.71,0.00029152,60]
[378802677,1755023449800,460.0,0.00029152,60]
[378802678,1755023449854,2496.71,0.00029152,60]
[378802679,1755023449905,460.0,0.00029152,60]
[378802680,1755023449961,2496.71,0.00029152,60]
[378802681,1755023450006,460.0,0.00029152,60]
[378802682,1755023450057,2496.71,0.00029152,60]
[378802683,1755023450113,2496.71,0.00029152,60]
[378802684,1755023450164,2496.71,0.00029152,60]
[378802685,1755023450217,2496.71,0.00029152,60]
[378802686,1755023450267,2496.71,0.00029152,60]
[378802688,1755023451630,2496.71,0.00029152,60]
[378802689,1755023451875,2496.71,0.00029152,60]
[378802690,1755023452140,2496.71,0.00029152,60]
[378802691,1755023452522,2496.71,0.00029152,60]
[378802692,1755023452778,2496.71,0.00029152,60]
[378802693,1755023453097,2496.71,0.00029152,60]
[378802694,1755023456102,465.50574935,0.00029152,60]
[378802695,1755023458835,460.0,0.00029152,60]
[378802696,1755023458890,460.0,0.00029152,60]
[378802698,1755023459110,460.0,0.00029152,60]
[378802699,1755023459378,460.0,0.00029152,60]
[378802700,1755023459685,460.0,0.00029152,60]
[378802701,1755023459917,460.0,0.00029152,60]
[378802702,1755023460170,460.0,0.00029152,60]
[378802703,1755023460411,460.0,0.00029152,60]
[378802704,1755023460662,460.0,0.00029152,60]
[378802705,1755023460927,460.0,0.00029152,60]
[378802706,1755023461190,460.0,0.00029152,60]
[378802707,1755023461448,460.0,0.00029152,60]
[378802708,1755023461684,460.0,0.00029152,60]
[378802709,1755023461924,603.07,0.00029152,60]
[378802710,1755023464617,471.03127346,0.00029152,60]
[378802711,1755023465209,460.0,0.00029152,60]
[378802712,1755023466672,460.74774085,0.00029152,60]
[378802713,1755023467955,460.0,0.00029152,60]
[378802714,1755023468265,460.0,0.00029152,60]
[378802715,1755023470898,460.0,0.00029152,60]
[378802716,1755023472801,460.0,0.00029152,60]
[378802717,1755023477906,460.0,0.00029152,60]
[378802718,1755023478156,380.26,0.00029152,60]
[378802719,1755023482051,460.0,0.00029152,60]
[378802720,1755023484078,460.0,0.00029152,60]
[378802721,1755023491972,460.0,0.00029152,60]
[378802722,1755023492224,460.0,0.00029152,60]
[378802723,1755023492483,460.0,0.00029152,60]
[378802724,1755023492713,460.0,0.00029152,60]
[378802725,1755023494617,460.0,0.00029152,60]
[378802726,1755023494882,460.0,0.00029152,60]
[378802727,1755023495653,460.0,0.00029152,60]
[378802728,1755023498890,460.0,0.00029152,60]
[378802729,1755023500892,460.0,0.00029152,60]
[378802730,1755023500946,544.90644396,0.00029152,60]
[378802731,1755023501868,460.0,0.00029152,60]
[378802732,1755023502129,460.0,0.00029152,60]
[378802733,1755023502373,460.0,0.00029152,60]
[378802734,1755023502654,460.0,0.00029152,60]
[378802735,1755023502866,460.0,0.00029152,60]
[378802736,1755023502917,460.0,0.00029152,60]
[378802737,1755023502967,162.77,0.00029152,60]
[378802738,1755023503120,242.24,0.00029152,60]
[378802739,1755023505275,461.15372574,0.00029152,60]
[378802740,1755023509335,460.0,0.00029152,60]
[378802741,1755023510964,460.0,0.00029152,60]
[378802742,1755023511217,460.0,0.00029152,60]
[378802743,1755023511465,242.24,0.00029152,60]
[378802744,1755023515022,460.0,0.00029152,60]
[378802745,1755023515199,460.0,0.00029152,60]
[378802746,1755023515386,460.0,0.00029152,60]
[378802747,1755023515451,460.0,0.00029152,60]
[378802748,1755023515658,460.0,0.00029152,60]
[378802749,1755023515731,460.0,0.00029152,60]
[378802750,1755023515945,468.14,0.00029152,60]
[378802751,1755023515996,601.35,0.00029152,60]
[378802752,1755023517605,460.0,0.00029152,60]
[378802753,1755023517883,460.0,0.00029152,60]
[378802754,1755023518194,551.02949407,0.00029152,60]
[378802755,1755023518268,460.0,0.00029152,60]
[378802756,1755023526696,460.0,0.00029152,60]
[378802757,1755023527754,460.0,0.00029152,60]
[378802758,1755023528070,460.0,0.00029152,60]
[378802759,1755023528497,460.0,0.00029152,60]
[378802760,1755023528658,460.0,0.00029152,60]
[378802761,1755023528842,460.0,0.00029152,60]
[378802762,1755023529097,460.0,0.00029152,60]
[378802763,1755023529713,460.0,0.00029152,60]
[378802764,1755023530317,460.0,0.00029152,60]